bitfinex/quotes_ETHUSD_20230113
["timestamp","ask_amount","ask_price","bid_price","bid_amount"]
[1673580689775,5.42070574,1410.8,1410.7,2.81726398]
[1673580689992,19.59722574,1410.8,1410.7,2.81726398]
[1673580690203,19.59722574,1410.8,1410.7,1.75863906]
[1673580690414,12.50887574,1410.8,1410.7,1.75863906]
[1673580690578,12.50887574,1410.8,1410.7,2.81726398]
[1673580690579,5.42070574,1410.8,1410.7,2.81726398]
[1673580692310,1.16136456,1410.8,1410.7,2.81726398]
[1673580692530,1.16136456,1410.8,1410.7,1.05862492]
[1673580692531,1.06236456,1410.8,1410.7,1.05862492]
[1673580692738,1.06236456,1410.8,1410.7,2.81726398]
[1673580693257,8.15053456,1410.8,1410.7,2.81726398]
[1673580693470,8.24953456,1410.8,1410.7,2.81726398]
[1673580696509,8.14953456,1410.8,1410.7,2.81726398]
[1673580697621,8.14953456,1410.8,1410.7,1.05862492]
[1673580697838,8.14953456,1410.8,1410.7,2.81726398]
[1673580698621,15.23770456,1410.8,1410.7,2.81726398]
[1673580698927,15.23770456,1410.8,1410.7,1.75863906]
[1673580699137,22.32587456,1410.8,1410.7,1.75863906]
[1673580699510,22.32587456,1410.8,1410.7,2.81726398]
[1673580703463,22.60606471,1410.8,1410.7,2.81726398]
[1673580706358,21.64370015,1410.8,1410.7,2.81726398]
[1673580708062,14.55553015,1410.8,1410.7,2.81726398]
[1673580708789,19.76806921,1410.8,1410.7,2.81726398]
[1673580709023,12.67989921,1410.8,1410.7,2.81726398]
[1673580709199,12.67989921,1410.8,1410.7,1.75863906]
[1673580712667,12.67989921,1410.8,1410.6,5.96918665]
[1673580712876,12.67989921,1410.8,1410.7,1.75863906]
[1673580713130,11.67989921,1410.8,1410.7,1.75863906]
[1673580714705,11.67989921,1410.8,1410.7,4.15754759]
[1673580715037,11.67989921,1410.8,1410.7,4.32826398]
[1673580715038,4.59172921,1410.8,1410.7,4.32826398]
[1673580715310,4.49272921,1410.8,1410.7,4.32826398]
[1673580715699,4.49272921,1410.8,1410.7,5.91618665]
[1673580716098,4.49272921,1410.8,1410.7,4.32826398]
[1673580719369,4.49272921,1410.8,1410.7,2.81726398]
[1673580719792,4.49272921,1410.8,1410.7,1.05862492]
[1673580720022,4.49272921,1410.8,1410.7,2.81726398]
[1673580721416,4.49272921,1410.8,1410.7,1.05862492]
[1673580721632,4.49272921,1410.8,1410.7,2.81726398]
[1673580722742,0.28019015,1410.8,1410.7,5.91618665]
[1673580722948,0.28019015,1410.8,1410.7,4.85756173]
[1673580723203,0.28019015,1410.8,1410.7,5.91624373]
[1673580723415,0.28019015,1410.8,1410.7,4.40524373]
[1673580725817,0.28019015,1410.8,1410.7,3.34656173]
[1673580726246,0.28019015,1410.8,1410.7,4.4056343]
[1673580727708,33.27719188,1410.9,1410.7,4.4056343]
[1673580728046,25.12654,1410.9,1410.8,2.81771163]
[1673580730396,18.03856,1410.9,1410.8,2.81771163]
[1673580732562,10.9506,1410.9,1410.8,2.81771163]
[1673580732774,0.078,1410.9,1410.8,5.38302564]
[1673580732934,22.45117282,1411.0,1410.8,8.48371157]
[1673580733154,22.45117282,1411.0,1410.9,5.9157119]
[1673580733367,7.18532,1411.0,1410.9,5.9177119]
[1673580733679,0.098,1411.0,1410.9,4.33002597]
[1673580733889,33.0566544,1411.1,1410.9,4.32802597]
[1673580734149,33.0566544,1411.1,1411.0,3.26563906]
[1673580735902,33.0566544,1411.1,1411.0,3.26100647]
[1673580736335,33.0566544,1411.1,1411.0,1.75400647]
[1673580736659,33.0566544,1411.1,1410.9,2.63538691]
[1673580736818,33.0566544,1411.1,1410.9,2.56938691]
[1673580737029,33.0566544,1411.1,1410.9,1.511]
[1673580738393,34.11927628,1411.1,1410.9,1.511]
[1673580738723,9.58744,1411.0,1410.8,2.63538691]
[1673580738934,9.58744,1411.0,1410.7,4.22307284]
[1673580738935,16.77261,1411.0,1410.7,4.22307284]
[1673580739177,16.77261,1411.0,1410.7,2.56938691]
[1673580739178,28.03539339,1411.0,1410.7,2.56938691]
[1673580739600,45.09269339,1411.0,1410.7,2.56938691]
[1673580740659,42.59269339,1411.0,1410.7,2.56938691]
[1673580740969,39.47997188,1411.0,1410.7,2.56938691]
[1673580743559,38.41735,1411.0,1410.7,2.56938691]
[1673580743768,38.41735,1411.0,1410.8,1.511]
[1673580745379,39.47997188,1411.0,1410.8,1.511]
[1673580745597,38.41735,1411.0,1410.8,1.511]
[1673580746118,31.32991,1411.0,1410.8,1.511]
[1673580746290,24.24247,1411.0,1410.8,2.56938691]
[1673580748014,31.32964,1411.0,1410.8,1.511]
[1673580748186,24.24247,1411.0,1410.8,1.511]
[1673580748960,31.32964,1411.0,1410.8,1.511]
[1673580749474,24.24247,1411.0,1410.8,1.511]
[1673580749882,31.32964,1411.0,1410.8,1.511]
[1673580750074,24.24247,1411.0,1410.8,1.511]
[1673580750940,31.32964,1411.0,1410.8,1.511]
[1673580751853,31.32964,1411.0,1410.7,11.31167284]
[1673580752167,31.32964,1411.0,1410.7,11.24767284]
[1673580752587,24.24247,1411.0,1410.7,11.24767284]
[1673580753485,0.2531331,1410.9,1410.7,11.24767284]
[1673580753698,1e-08,1410.9,1410.8,1.05838691]
[1673580756048,1e-08,1410.9,1410.8,2.81667294]
[1673580756893,1e-08,1410.9,1410.8,4.32267294]
[1673580758832,1e-08,1410.9,1410.8,5.91035887]
[1673580759054,1e-08,1410.9,1410.8,5.91235887]
[1673580759220,1e-08,1410.9,1410.8,4.32467294]
[1673580759433,1e-08,1410.9,1410.8,4.32267294]
[1673580759975,1e-08,1410.9,1410.8,5.91035887]
[1673580760180,1e-08,1410.9,1410.8,5.91235887]
[1673580760887,1e-08,1410.9,1410.8,4.32467294]
[1673580761096,1e-08,1410.9,1410.8,5.91035887]
[1673580761303,1e-08,1410.9,1410.8,5.91235887]
[1673580761536,1e-08,1410.9,1410.8,4.32467294]
[1673580761745,1e-08,1410.9,1410.8,5.83367294]
[1673580762041,1e-08,1410.9,1410.8,5.83567294]
[1673580762682,1e-08,1410.9,1410.8,14.51152887]
[1673580762933,1e-08,1410.9,1410.8,22.56601261]
[1673580763103,1e-08,1410.9,1410.8,24.15325197]
[1673580763728,1e-08,1410.9,1410.8,22.03986539]
[1673580763957,1e-08,1410.9,1410.8,24.15325197]
[1673580764395,1e-08,1410.9,1410.8,35.39781666]
[1673580764560,1e-08,1410.9,1410.8,35.29237367]
[1673580765221,1e-08,1410.9,1410.8,32.65418261]
[1673580765564,1e-08,1410.9,1410.8,34.24079357]
[1673580765779,1e-08,1410.9,1410.8,36.87898463]
[1673580766372,0.1935044,1411.1,1411.0,21.26151]
[1673580766728,0.1935044,1411.1,1411.0,31.68323227]
[1673580767267,0.1935044,1411.1,1411.0,30.09717053]
[1673580767622,10.8676041,1411.3,1411.0,30.09717053]
[1673580767835,10.8676041,1411.3,1411.2,1.511]
[1673580768111,10.8676041,1411.3,1411.2,32.64055475]
[1673580768112,0.098,1411.3,1411.2,32.64055475]
[1673580768331,0.21696854,1411.4,1411.2,43.48474591]
[1673580768541,0.21696854,1411.4,1411.3,5.45230708]
[1673580768701,0.21696854,1411.4,1411.3,12.90177602]
[1673580768905,0.21696854,1411.4,1411.3,19.98743602]
[1673580769338,0.21696854,1411.4,1411.3,14.86340203]
[1673580769572,0.21696854,1411.4,1411.3,21.94906203]
[1673580771429,0.21696854,1411.4,1411.3,27.27698]
[1673580771902,0.21696854,1411.4,1411.3,29.03459729]
[1673580772090,0.21696854,1411.4,1411.3,27.27698]
[1673580772312,1.13696854,1411.4,1411.3,1.513]
[1673580772528,1.13696854,1411.4,1411.3,1.511]
[1673580772906,1.13696854,1411.4,1411.3,8.59666]
[1673580773122,0.21696854,1411.4,1411.3,8.59866]
[1673580773899,1e-08,1411.4,1411.3,8.59866]
[1673580776790,1e-08,1411.4,1411.3,35.29761164]
[1673580777004,1e-08,1411.4,1411.3,41.64297558]
[1673580777644,1e-08,1411.4,1411.3,41.64259277]
[1673580777884,1e-08,1411.4,1411.3,34.86462402]
[1673580778062,1e-08,1411.4,1411.3,41.64298096]
[1673580778479,0.11342138,1411.6,1411.3,59.77698096]
[1673580778736,0.16342138,1411.7,1411.5,1.05220015]
[1673580778893,0.32388648,1412.1,1411.6,8.80066467]
[1673580778894,0.16588648,1412.1,1411.6,8.80066467]
[1673580779110,0.16588648,1412.1,1411.7,39.1974748]
[1673580779430,0.16588648,1412.1,1412.0,24.26645]
[1673580779646,0.16588648,1412.1,1412.0,24.26845]
[1673580779875,0.16588648,1412.1,1412.0,17.1863]
[1673580780730,1.08588648,1412.1,1412.0,0.002]
[1673580780924,1.21106378,1412.1,1411.8,7.0848]
[1673580782305,4.8173965,1412.1,1411.8,7.0848]
[1673580782520,2.5,1412.0,1411.8,0.002]
[1673580782674,20.766,1412.0,1411.7,8.59661]
[1673580782879,20.864,1412.0,1411.7,15.67994]
[1673580783139,22.21947309,1412.0,1411.7,15.67994]
[1673580784293,22.21947309,1412.0,1411.7,22.76359]
[1673580787923,19.71947309,1412.0,1411.7,22.76359]
[1673580788392,18.364,1412.0,1411.7,22.76359]
[1673580792162,18.364,1412.0,1411.7,21.25259]
[1673580792493,0.098,1412.0,1411.9,22.75895]
[1673580792704,11.11988648,1412.1,1411.9,22.76095]
[1673580792705,11.21788648,1412.1,1411.9,22.76095]
[1673580792860,11.21788648,1412.1,1412.0,1.511]
[1673580793068,0.26388648,1412.1,1412.0,1.511]
[1673580793280,0.26388648,1412.1,1412.0,22.75745]
[1673580793281,0.16588648,1412.1,1412.0,22.75745]
[1673580793522,0.16588648,1412.1,1412.0,22.75945]
[1673580795940,17.47978648,1412.2,1412.0,22.75945]
[1673580796753,0.26388648,1412.2,1412.0,22.75945]
[1673580796966,0.16588648,1412.2,1412.1,1.511]
[1673580797188,0.16588648,1412.2,1412.1,22.75595]
[1673580797402,0.16588648,1412.2,1412.1,22.75795]
[1673580800062,18.7579,1412.5,1412.1,22.75795]
[1673580800063,0.005,1412.5,1412.2,14.99910981]
[1673580800393,0.31018086,1413.0,1412.5,28.31756]
[1673580800695,0.43769286,1413.2,1413.0,21.23142]
[1673580800900,0.0037202,1413.7,1413.1,10.76656435]
[1673580801071,0.0037202,1413.7,1413.6,4.52]
[1673580801294,2.4537202,1413.9,1413.6,25.74239]
[1673580801523,2.98202322,1413.9,1413.6,0.014]
[1673580801841,1.06262188,1413.8,1413.5,0.014]
[1673580802003,1.06262188,1413.8,1413.1,0.016]
[1673580802004,7.07363,1413.7,1413.1,0.016]
[1673580802215,7.07363,1413.7,1413.1,3.0]
[1673580802216,2.218363,1413.6,1413.1,3.0]
[1673580802421,4.63986782,1413.6,1413.1,3.0]
[1673580802676,4.63986782,1413.6,1413.0,0.066]
[1673580802677,1.511,1413.5,1413.0,0.066]
[1673580802895,1.511,1413.5,1412.8,0.014]
[1673580802896,15.66171,1413.4,1412.8,0.014]
[1673580803061,18.88398404,1413.4,1412.7,8.60353]
[1673580803276,1.8883984,1413.3,1412.7,8.60353]
[1673580803641,4.30990322,1413.3,1412.7,8.60353]
[1673580804327,0.092,1413.4,1413.2,1.511]
[1673580804685,2.5,1413.5,1413.3,28.9533806]
[1673580804851,2.5,1413.5,1413.4,17.15026]
[1673580805199,0.092,1413.7,1413.4,3.014]
[1673580805412,1.85109,1413.7,1413.4,4.511]
[1673580805628,1.85109,1413.7,1413.4,7.011]
[1673580805822,1.85109,1413.7,1413.4,4.525]
[1673580805993,1.85109,1413.7,1413.4,4.511]
[1673580806204,4.35109,1413.7,1413.5,1.507]
[1673580806678,1.85109,1413.7,1413.5,1.507]
[1673580807297,18.5109,1413.8,1413.5,1.507]
[1673580807621,0.282931,1413.9,1413.8,0.96097427]
[1673580807792,0.282931,1413.9,1413.8,6.97797427]
[1673580808021,0.182931,1413.9,1413.8,6.99397427]
[1673580808479,0.5804578,1413.9,1413.8,6.99397427]
[1673580808986,0.5804578,1413.9,1413.8,3.99397427]
[1673580809153,0.5804578,1413.9,1413.8,3.97797427]
[1673580809510,1.5004578,1413.9,1413.8,0.96097427]
[1673580809671,1.65050358,1413.9,1413.8,0.96097427]
[1673580809883,1.5004578,1413.9,1413.8,0.96097427]
[1673580810552,0.5804578,1413.9,1413.8,0.96097427]
[1673580810874,1.5004578,1413.9,1413.8,0.96097427]
[1673580811192,0.5804578,1413.9,1413.8,0.96097427]
[1673580811403,0.3975268,1413.9,1413.8,0.96097427]
[1673580811784,8.67990948,1413.9,1413.8,0.96097427]
[1673580811994,8.77090948,1413.9,1413.8,0.96097427]
[1673580812245,12.3772422,1413.9,1413.8,0.96097427]
[1673580812405,26.5225022,1413.9,1413.8,0.96097427]
[1673580812775,29.0225022,1413.9,1413.8,0.96097427]
[1673580813156,11.27090948,1413.9,1413.8,0.96097427]
[1673580814402,8.77090948,1413.9,1413.8,0.96097427]
[1673580814611,0.77827948,1413.9,1413.8,0.96097427]
[1673580814836,0.68727948,1413.9,1413.8,0.96097427]
[1673580815250,0.3975268,1413.9,1413.8,0.96097427]
[1673580816310,1.3175268,1413.9,1413.8,0.96097427]
[1673580816709,0.3975268,1413.9,1413.8,0.96097427]
[1673580816919,0.3975268,1413.9,1413.8,25.20036427]
[1673580817178,18.0941,1414.1,1413.8,25.20036427]
[1673580817179,18.1851,1414.1,1413.8,25.21636427]
[1673580817334,18.1851,1414.1,1414.0,1.511]
[1673580817550,0.091,1414.1,1414.0,1.511]
[1673580817756,24.13372,1414.3,1414.0,1.511]
[1673580818015,28.01119399,1414.3,1414.0,1.511]
[1673580819899,0.32926627,1414.7,1414.3,3.46968108]
[1673580820235,49.28799871,1415.4,1414.3,3.46968108]
[1673580820236,7.12574,1415.3,1414.6,3.45468238]
[1673580820447,7.06666,1415.1,1414.6,7.06911]
[1673580820767,7.06666,1415.1,1414.7,6.40470969]
[1673580820768,0.091,1415.1,1414.7,6.40470969]
[1673580820919,0.712574,1415.2,1414.9,1.507]
[1673580821151,2.55,1415.0,1414.9,1.507]
[1673580821364,2.55,1415.0,1414.9,3.018]
[1673580821576,2.55,1415.0,1414.9,1.511]
[1673580822048,0.97,1415.0,1414.9,1.511]
[1673580822213,0.05,1415.0,1414.9,1.511]
[1673580822778,0.05,1415.0,1414.8,1.511]
[1673580822779,0.959,1415.0,1414.8,1.511]
[1673580822948,0.0959,1414.9,1414.7,0.066]
[1673580823307,7.16374,1414.9,1414.4,7.39325429]
[1673580823516,0.716374,1414.8,1414.5,3.0]
[1673580823890,0.1869,1414.9,1414.6,1.498]
[1673580824098,2.5,1414.8,1414.7,1.511]
[1673580824351,0.091,1415.0,1414.7,1.511]
[1673580824523,16.72485,1415.1,1414.7,1.511]
[1673580824731,9.56719,1415.0,1414.7,1.511]
[1673580824939,16.72538,1415.0,1414.6,1.498]
[1673580825154,8.740388,1414.9,1414.6,1.498]
[1673580825394,8.831388,1414.9,1414.6,1.498]
[1673580825613,2.5,1414.8,1414.5,4.575]
[1673580825929,16.63698,1414.8,1414.5,3.0]
[1673580826146,19.63545007,1414.8,1414.5,3.0]
[1673580826340,5.49847007,1414.8,1414.5,3.0]
[1673580826518,16.72762,1414.8,1414.5,3.0]
[1673580826721,16.72762,1414.8,1414.4,4.39325429]
[1673580826722,3.60633272,1414.7,1414.4,2.87225429]
[1673580827045,14.13826,1414.6,1414.4,2.80625429]
[1673580827277,3.913826,1414.5,1414.4,2.80625429]
[1673580827611,10.983456,1414.5,1414.4,2.80625429]
[1673580827817,1.011,1414.5,1414.4,4.31725429]
[1673580827980,0.92,1414.5,1414.4,4.31725429]
[1673580828409,9.66013,1414.6,1414.4,7.31725429]
[1673580828616,9.66013,1414.6,1414.4,4.33325429]
[1673580828843,9.66013,1414.6,1414.4,4.31725429]
[1673580829394,9.66013,1414.6,1414.4,2.80625429]
[1673580829559,7.16013,1414.6,1414.4,2.80625429]
[1673580830186,0.091,1414.6,1414.4,4.31725429]
[1673580830397,16.7288,1414.7,1414.4,4.31725429]
[1673580831509,34.659559,1414.7,1414.4,4.31725429]
[1673580832143,2.5,1414.6,1414.4,2.80625429]
[1673580832465,21.20889,1414.5,1414.4,2.80625429]
[1673580832768,21.29989,1414.5,1414.4,2.80625429]
[1673580832989,26.69031227,1414.5,1414.4,2.80625429]
[1673580833506,30.29664499,1414.5,1414.4,2.80625429]
[1673580833664,32.03764499,1414.5,1414.4,2.80625429]
[1673580833875,21.21189,1414.3,1414.1,0.066]
[1673580834223,16.263869,1414.2,1413.8,2.46997427]
[1673580834550,14.23368,1414.2,1413.9,1.507]
[1673580834734,0.091,1414.2,1414.0,1.511]
[1673580834941,14.23208,1414.4,1414.0,1.511]
[1673580835162,14.23208,1414.4,1414.0,4.51404342]
[1673580835163,0.091,1414.4,1414.0,4.51404342]
[1673580835347,7.07017,1414.4,1414.0,11.58616342]
[1673580835561,2.5,1414.3,1414.0,11.60216342]
[1673580835786,0.091,1414.4,1414.2,1.511]
[1673580835983,54.44156,1415.0,1414.3,14.73745537]
[1673580836191,54.44156,1415.0,1414.4,7.20739378]
[1673580836192,61.015616,1415.0,1414.4,7.20739378]
[1673580836400,61.015616,1415.0,1414.5,2.5]
[1673580836401,30.635616,1415.0,1414.5,2.5]
[1673580836735,23.568156,1415.0,1414.6,0.00347814]
[1673580836942,23.568156,1415.0,1414.8,1.511]
[1673580836943,16.9941,1415.0,1414.8,1.511]
[1673580837140,0.091,1415.0,1414.8,1.511]
[1673580837348,2.5,1415.0,1414.8,1.511]
[1673580837557,0.05,1414.9,1414.8,1.511]
[1673580838341,0.05,1414.9,1414.8,3.01847765]
[1673580838508,7.06647,1415.2,1414.8,14.58560765]
[1673580838509,0.091,1415.2,1414.8,14.58560765]
[1673580838711,7.06622,1415.2,1415.1,1.498]
[1673580838924,7.15722,1415.2,1415.1,1.498]
[1673580839493,0.091,1415.2,1415.1,1.498]
[1673580839664,16.72264,1415.3,1415.1,1.498]
[1673580840028,9.56613,1415.2,1415.1,1.498]
[1673580840185,9.65713,1415.2,1415.1,1.498]
[1673580840395,16.72326,1415.2,1415.1,1.498]
[1673580840869,7.15713,1415.2,1415.1,1.498]
[1673580841601,14.22326,1415.2,1415.1,1.498]
[1673580841809,20.40425998,1415.2,1415.0,1.511]
[1673580841980,20.40425998,1415.2,1414.8,0.066]
[1673580841981,27.47038998,1415.2,1414.8,0.066]
[1673580842178,27.47038998,1415.2,1414.7,1.511]
[1673580842179,2.5,1415.1,1414.7,1.511]
[1673580842389,2.5,1415.1,1414.5,7.1355]
[1673580842708,25.05880272,1415.0,1414.5,0.016]
[1673580842915,25.05880272,1415.0,1414.3,14.14075]
[1673580842916,3.60633272,1414.9,1414.3,1.61]
[1673580843141,21.20134,1414.8,1414.3,1.594]
[1673580843373,16.6377,1414.7,1414.3,1.594]
[1673580843568,16.7287,1414.7,1414.3,1.594]
[1673580843989,22.96433072,1414.7,1414.1,1.659]
[1673580844211,22.96433072,1414.7,1414.1,1.593]
[1673580845478,30.03336072,1414.7,1414.1,4.593]
[1673580847970,3.60633272,1414.6,1414.1,4.593]
[1673580848323,23.70964,1414.5,1414.1,3.0]
[1673580848533,24.16127327,1414.5,1414.0,4.66]
[1673580848696,24.16127327,1414.5,1414.0,4.594]
[1673580851602,24.11127327,1414.5,1414.0,4.594]
[1673580851822,14.14146,1414.3,1414.0,4.594]
[1673580851978,2.5,1414.2,1414.0,4.594]
[1673580852401,9.57118,1414.2,1414.0,4.594]
[1673580852638,16.73336,1414.2,1414.1,3.0]
[1673580852871,23.80454,1414.2,1414.0,0.066]
[1673580853030,23.80454,1414.2,1413.9,4.584]
[1673580853240,26.78680716,1414.2,1413.9,1.584]
[1673580854322,26.78680716,1414.2,1413.8,2.56933809]
[1673580854531,26.78680716,1414.2,1413.9,3.0]
[1673580855445,0.091,1414.2,1413.9,4.594]
[1673580855664,23.61583161,1414.3,1414.1,1.593]
[1673580855665,23.70683161,1414.3,1414.1,1.593]
[1673580855908,23.70683161,1414.3,1414.1,4.593]
[1673580856123,30.77776161,1414.3,1414.1,1.593]
[1673580857699,30.77776161,1414.3,1414.0,1.594]
[1673580858300,37.84869161,1414.3,1414.0,1.594]
[1673580858766,37.84869161,1414.3,1413.9,5.71120015]
[1673580858981,2.5,1414.2,1413.9,5.66120015]
[1673580859221,7.69990623,1414.2,1413.9,12.73382015]
[1673580859384,14.86210623,1414.2,1413.9,5.66120015]
[1673580860052,14.86210623,1414.2,1413.9,4.609]
[1673580860258,14.86210623,1414.2,1413.9,4.593]
[1673580861343,21.93330623,1414.2,1413.9,4.593]
[1673580862959,21.93330623,1414.2,1413.9,4.493]
[1673580863750,21.93330623,1414.2,1413.8,2.09353824]
[1673580863751,26.48822001,1414.2,1413.8,2.09353824]
[1673580863963,26.48822001,1414.2,1413.8,0.97533809]
[1673580864269,30.09455273,1414.2,1413.8,0.97533809]
[1673580864438,3.00945527,1414.1,1413.8,0.97533809]
[1673580864651,21.21639,1414.0,1413.8,0.97533809]
[1673580864865,21.30739,1414.0,1413.8,0.97533809]
[1673580865089,23.80739,1414.0,1413.8,0.97533809]
[1673580865734,2.5,1413.9,1413.8,0.97533809]
[1673580866057,23.71789,1413.9,1413.8,0.97533809]
[1673580866380,23.80889,1413.9,1413.8,0.97533809]
[1673580868420,27.146992,1413.9,1413.8,0.97533809]
[1673580869380,21.30889,1413.9,1413.8,0.97533809]
[1673580872204,0.091,1413.9,1413.8,0.97533809]
[1673580872413,14.14526,1413.9,1413.8,0.97533809]
[1673580872637,14.23626,1413.9,1413.8,0.97533809]
[1673580879264,12.364629,1413.9,1413.8,0.97533809]
[1673580879608,19.437259,1413.9,1413.8,0.97533809]
[1673580883165,5.291999,1413.9,1413.8,0.97533809]
[1673580883378,7.16363,1413.9,1413.8,0.97533809]
[1673580883599,14.23626,1413.9,1413.8,0.97533809]
[1673580883945,7.16363,1413.9,1413.8,0.97533809]
[1673580884114,0.091,1413.9,1413.8,5.56933809]
[1673580884333,14.23415,1414.2,1413.8,8.39205053]
[1673580884663,21.30576,1414.2,1413.9,3.34738936]
[1673580884841,21.30576,1414.2,1413.9,1.593]
[1673580885050,21.30576,1414.2,1413.9,4.593]
[1673580885465,21.70107887,1414.2,1413.9,4.593]
[1673580886238,21.70107887,1414.2,1413.9,4.59087226]
[1673580888982,21.69907887,1414.2,1413.9,4.59287226]
[1673580889151,21.70107887,1414.2,1413.9,4.59087226]
[1673580890445,22.76370075,1414.2,1413.9,4.59087226]
[1673580891407,28.78319871,1414.2,1413.9,4.59087226]
[1673580891617,22.76370075,1414.2,1413.9,4.59087226]
[1673580892419,21.70107887,1414.2,1413.9,4.59087226]
[1673580892677,2.5,1414.1,1413.9,4.59087226]
[1673580892838,6.01946269,1414.0,1413.9,4.59087226]
[1673580893060,13.18259269,1414.0,1413.9,6.3453176]
[1673580893401,13.18259269,1414.0,1413.9,6.3613176]
[1673580893790,13.18259269,1414.0,1413.9,4.60687226]
[1673580893981,13.18259269,1414.0,1413.9,6.34531374]
[1673580894237,6.11046269,1414.0,1413.9,6.36131374]
[1673580895274,6.11046269,1414.0,1413.9,4.60687226]
[1673580895451,6.11046269,1414.0,1413.9,4.59087226]
[1673580895662,6.11046269,1414.0,1413.9,6.34532891]
[1673580895889,6.11046269,1414.0,1413.9,6.36132891]
[1673580896321,0.091,1414.0,1413.9,6.36132891]
[1673580896545,21.30676,1414.1,1413.9,6.36132891]
[1673580896728,21.30676,1414.1,1413.9,4.60687226]
[1673580896934,21.30676,1414.1,1413.9,4.59087226]
[1673580897284,14.23464,1414.1,1413.9,4.59087226]
[1673580899287,12.36330349,1414.1,1413.9,4.59087226]
[1673580900242,19.43542349,1414.1,1413.9,4.59087226]
[1673580901230,19.43542349,1414.1,1413.9,3.0]
[1673580901596,21.21789,1413.9,1413.8,5.09353824]
[1673580901807,21.30889,1413.9,1413.8,6.7980393]
[1673580902121,21.30889,1413.9,1413.8,5.74583915]
[1673580903480,21.30889,1413.9,1413.8,5.98286488]
[1673580904289,21.70585532,1413.9,1413.8,7.03506503]
[1673580905596,21.70585532,1413.9,1413.8,1.78486488]
[1673580905759,21.70585532,1413.9,1413.8,1.76899018]
[1673580905952,21.70585532,1413.9,1413.8,0.01436382]
[1673580906846,21.60585532,1413.9,1413.8,0.01436382]
[1673580907037,26.47161485,1413.9,1413.8,0.01436382]
[1673580907851,26.47161485,1413.9,1413.8,1.76898059]
[1673580909584,26.47161485,1413.9,1413.8,0.01436382]
[1673580910500,28.97161485,1413.9,1413.8,0.01436382]
[1673580911752,26.47161485,1413.9,1413.8,0.01436382]
[1673580912855,14.53322532,1413.9,1413.8,0.01436382]
[1673580913050,14.53322532,1413.9,1413.8,1.76893899]
[1673580914114,14.53122532,1413.9,1413.8,1.76893899]
[1673580914305,14.53322532,1413.9,1413.8,1.76893899]
[1673580915305,7.46059532,1413.9,1413.8,2.82113914]
[1673580915460,0.48796532,1413.9,1413.8,6.50213295]
[1673580915651,0.39696532,1413.9,1413.8,9.47070812]
[1673580916085,0.39696532,1413.9,1413.8,11.58545711]
[1673580916329,0.39696532,1413.9,1413.8,9.47070812]
[1673580916541,0.39696532,1413.9,1413.8,18.65858711]
[1673580916717,17.5705,1414.0,1413.9,0.58646868]
[1673580917079,17.5705,1414.0,1413.9,8.28863066]
[1673580917396,17.5705,1414.0,1413.9,8.30463066]
[1673580917782,0.091,1414.0,1413.9,8.30463066]
[1673580917997,49.46836,1414.2,1413.9,7.59586144]
[1673580918176,49.46836,1414.2,1414.0,1.75457517]
[1673580918722,38.67646,1414.2,1414.0,1.75457517]
[1673580920034,43.02394468,1414.2,1413.9,4.70328627]
[1673580920219,43.02394468,1414.2,1413.9,4.63728627]
[1673580920409,39.73908188,1414.2,1413.9,4.63728627]
[1673580920629,38.67646,1414.2,1413.9,4.63728627]
[1673580921636,39.73908188,1414.2,1413.9,3.58646868]
[1673580921791,3.97390819,1414.1,1413.9,3.58646868]
[1673580921952,2.5,1414.1,1413.9,0.58646868]
[1673580922417,21.21639,1414.0,1413.9,0.58646868]
[1673580922590,21.30739,1414.0,1413.9,0.58646868]
[1673580922928,21.30539,1414.0,1413.9,0.58646868]
[1673580923118,21.30739,1414.0,1413.9,0.58646868]
[1673580923946,21.30739,1414.0,1413.9,2.34097929]
[1673580924237,5.29166365,1414.0,1413.9,5.34097929]
[1673580924475,0.091,1414.0,1413.9,6.40779688]
[1673580924853,7.16275,1414.1,1413.9,7.59679688]
[1673580925007,7.16275,1414.1,1414.0,1.75451061]
[1673580925416,0.091,1414.1,1414.0,1.75451061]
[1673580925675,31.60471,1414.2,1414.0,1.75451061]
[1673580927851,17.462,1414.2,1414.0,1.75451061]
[1673580928927,24.5333,1414.2,1414.0,1.75451061]
[1673580929304,31.6046,1414.2,1414.0,1.75451061]
[1673580929659,38.6759,1414.2,1414.0,1.75451061]
[1673580932557,38.6759,1414.2,1413.9,4.70328627]
[1673580932766,38.6759,1414.2,1413.9,4.63728627]
[1673580934137,41.53322895,1414.2,1413.9,4.63728627]
[1673580935409,38.6759,1414.2,1413.9,4.63728627]
[1673580935622,38.6759,1414.2,1414.0,1.75435202]
[1673580935859,38.6759,1414.2,1413.9,4.70328627]
[1673580936024,38.6759,1414.2,1413.9,4.63728627]
[1673580936233,38.6759,1414.2,1414.0,1.75434463]
[1673580937838,38.6759,1414.2,1413.9,4.70328627]
[1673580938016,38.6759,1414.2,1414.0,1.75432855]
[1673580939930,38.6759,1414.2,1413.9,4.70328627]
[1673580940139,38.6759,1414.2,1413.9,4.63728627]
[1673580940588,38.6759,1414.2,1413.9,3.58646868]
[1673580941221,38.6759,1414.2,1413.9,4.63728627]
[1673580941862,46.25608491,1414.2,1413.9,4.63728627]
[1673580942027,47.31870679,1414.2,1413.9,3.58646868]
[1673580942242,2.5,1414.1,1413.9,0.58646868]
[1673580942587,14.14426,1414.0,1413.9,0.58646868]
[1673580942742,14.23526,1414.0,1413.9,2.34089198]
[1673580943213,14.23526,1414.0,1413.9,5.34089198]
[1673580943379,20.22231772,1414.0,1413.9,0.60246868]
[1673580943585,27.29444772,1414.0,1413.9,0.58646868]
[1673580944337,29.79444772,1414.0,1413.9,0.58646868]
[1673580948996,30.8570696,1414.0,1413.9,0.58288419]
[1673580950051,35.06114845,1414.0,1413.9,0.58288419]
[1673580950205,39.22195829,1414.0,1413.9,0.58288419]
[1673580951087,33.4670696,1414.0,1413.9,0.58288419]
[1673580951938,38.15933641,1414.0,1413.9,0.58288419]
[1673580952540,33.99852657,1414.0,1413.9,0.58288419]
[1673580952945,38.15933641,1414.0,1413.9,0.58288419]
[1673580953198,33.99852657,1414.0,1413.9,0.58288419]